{"text_format":"1","workbook":"xlsx","n_sheets":2,"sheets":["Sheet1","Sheet2"],"not_rendered":{"charts":0,"images":33,"macros":1,"external_links":0,"defined_names":20,"comments":0,"pivot_tables":0},"unopened":[],"bounds":{"document_bytes":16777216,"sheet_cells":100000,"rows_first":2000,"rows_last":500,"rows_between":2000,"halvings":0,"cell_chars":16384,"cell_head_chars":4096},"cells_cut":0,"cells_raw":0,"read":"whole","date_system":"1900"}

{"sheet":"Sheet1","index":0,"n_rows":27,"n_cols":29,"rows_kept":27,"cut":false,"hidden":false,"merged":[[0,0,0,11],[1,17,1,19],[6,4,6,11],[7,0,8,0],[9,0,17,0],[6,2,6,3],[4,3,4,5],[3,3,3,5]]}
["NFL SQUARES COMPETITION"]
[null,null,null,null,null,null,null,null,null,null,null,null,null,null,"Settings",null,null,"Highlight Winners"]
[null,null,null,null,null,null,null,null,"Q1","Q2","Q3","Final",null,null,"Squares Available",null,{"$f":"COUNTIF(squares,\"\")","v":0},"First Quarter",null,"Y"]
[null,"Home Team",null,"Seattle Seahawks",null,null,null,null,11,14,21,28,null,null,"Players",null,{"$f":"COUNTA(tblParticipants[Names])","v":5},"Half Time",null,"Y"]
[null,"Away Team",null,"New York Jets",null,null,null,null,9,10,14,26,null,null,"Squares per Player",null,{"$f":"Q3/Q4","v":0},"Third Quarter",null,"Y"]
[null,null,null,null,null,null,null,null,null,null,null,null,null,null,"Equal Amount?",null,{"$f":"IF(MOD(Q3,Q4)=0,\"Y\",\"N\")","v":"Y"},"Full Time",null,"Y"]
[null,null,{"$f":"VLOOKUP(E7,Sheet2!A:B,2,FALSE)","v":{"$error":"#VALUE!"}},null,{"$f":"UPPER(D4)","v":"SEATTLE SEAHAWKS"}]
[{"$f":"VLOOKUP(A10,Sheet2!A:B,2,FALSE)","v":{"$error":"#VALUE!"}},null,2,0,1,4,7,3,5,8,6,9,null,null,null,null,null,null,null,"Names",null,null,null,null,"First Sort","Second Sort"]
[null,6,"Player D","Player B","Player E","Player A","Player C","Player B","Player C","Player E","Player A","Player D",null,null,null,null,null,null,null,"Player A",null,0,null,0,{"$f":"RAND()","v":3.3980950070345295E-2},0.47793728177648909,null,{"$f":"_xlfn.SORTBY(X9:X18,Y9:Y18)","v":8},{"$f":"_xlfn.SORTBY(X9:X18,Z9:Z18)","v":3}]
[{"$f":"UPPER(D5)","v":"NEW YORK JETS"},4,"Player C","Player E","Player E","Player A","Player E","Player C","Player A","Player C","Player A","Player C",null,null,null,null,null,null,null,"Player B",null,0,null,1,0.37879519476330148,0.65611949319309426,null,0,9]
[null,3,"Player A","Player D","Player C","Player D","Player C","Player C","Player E","Player D","Player B","Player B",null,null,null,null,null,null,null,"Player C",null,0,null,2,0.80380058893484085,0.86744538232467794,null,4,6]
[null,0,"Player D","Player D","Player E","Player B","Player B","Player A","Player E","Player E","Player B","Player D",null,null,null,null,null,null,null,"Player D",null,0,null,3,0.44145420083834053,3.9470112228481291E-3,null,6,0]
[null,8,"Player A","Player A","Player B","Player A","Player E","Player B","Player A","Player D","Player D","Player D",null,null,null,null,null,null,null,"Player E",null,0,null,4,8.2955521612306904E-2,0.80853816848952886,null,1,1]
[null,9,"Player D","Player D","Player D","Player E","Player E","Player B","Player E","Player E","Player A","Player D",null,null,null,null,null,null,null,null,null,null,null,5,{"$f":"RAND()","v":0.5078193630973652},0.81653001793408631,null,3,4]
[null,5,"Player B","Player B","Player C","Player E","Player D","Player E","Player C","Player A","Player D","Player B",null,null,null,null,null,null,null,null,null,null,null,6,0.24252744952265348,0.41820501443982117,null,5,5]
[null,1,"Player E","Player C","Player C","Player A","Player A","Player A","Player E","Player D","Player D","Player B",null,null,null,null,null,null,null,null,null,null,null,7,0.66955831812009825,0.82361284689542191,null,7,7]
[null,2,"Player C","Player A","Player E","Player E","Player A","Player A","Player D","Player B","Player C","Player B",null,null,null,null,null,null,null,null,null,null,null,8,1.7177777590897336E-2,0.91351814256774955,null,9,2]
[null,7,"Player A","Player C","Player C","Player B","Player C","Player C","Player B","Player B","Player C","Player B",null,null,null,null,null,null,null,null,null,null,null,9,0.72179603801756087,0.26750476107743126,null,2,8]
[]
[]
[]
[null,null,null,null,null,null,null,null,null,null,null,null,null,null,null,"Available"]
[null,null,null,null,null,null,null,0,null,null,null,null,null,null,null,{"$f":"_xlfn._xlws.FILTER(T9:T223,V9:V223>0)","v":{"$error":"#VALUE!"}}]
[null,null,null,null,null,null,null,0]
[null,null,null,null,null,null,null,0]
[null,null,null,null,null,null,null,0]
[null,null,null,null,null,null,null,0]

{"sheet":"Sheet2","index":1,"n_rows":33,"n_cols":2,"rows_kept":33,"cut":false,"hidden":true,"merged":[]}
["Name","Logo URL"]
["Arizona Cardinals",{"$error":"#VALUE!"}]
["Atlanta Falcons",{"$error":"#VALUE!"}]
["Baltimore Ravens",{"$error":"#VALUE!"}]
["Buffalo Bills",{"$error":"#VALUE!"}]
["Carolina Panthers",{"$error":"#VALUE!"}]
["Chicago Bears",{"$error":"#VALUE!"}]
["Cincinnati Bengals",{"$error":"#VALUE!"}]
["Cleveland Browns",{"$error":"#VALUE!"}]
["Dallas Cowboys",{"$error":"#VALUE!"}]
["Denver Broncos",{"$error":"#VALUE!"}]
["Detroit Lions",{"$error":"#VALUE!"}]
["Green Bay Packers",{"$error":"#VALUE!"}]
["Houston Texans",{"$error":"#VALUE!"}]
["Indianapolis Colts",{"$error":"#VALUE!"}]
["Jacksonville Jaguars",{"$error":"#VALUE!"}]
["Kansas City Chiefs",{"$error":"#VALUE!"}]
["Las Vegas Raiders",{"$error":"#VALUE!"}]
["Los Angeles Chargers",{"$error":"#VALUE!"}]
["Los Angeles Rams",{"$error":"#VALUE!"}]
["Miami Dolphins",{"$error":"#VALUE!"}]
["Minnesota Vikings",{"$error":"#VALUE!"}]
["New England Patriots",{"$error":"#VALUE!"}]
["New Orleans Saints",{"$error":"#VALUE!"}]
["New York Giants",{"$error":"#VALUE!"}]
["New York Jets",{"$error":"#VALUE!"}]
["Philadelphia Eagles",{"$error":"#VALUE!"}]
["Pittsburgh Steelers",{"$error":"#VALUE!"}]
["San Francisco 49ers",{"$error":"#VALUE!"}]
["Seattle Seahawks",{"$error":"#VALUE!"}]
["Tampa Bay Buccaneers",{"$error":"#VALUE!"}]
["Tennessee Titans",{"$error":"#VALUE!"}]
["Washington Commanders",{"$error":"#VALUE!"}]